[Event "Romania GP Final-KO 2024"]
[Site "Alba Iulia"]
[Date "2024.11.26"]
[Round "1.1"]
[White "Cnejev, Vladimir-Alexandru"]
[Black "Lupulescu, Constantin"]
[Result "1/2-1/2"]
[ECO "C02"]
[WhiteElo "2288"]
[BlackElo "2591"]
[Annotator "TA"]
[PlyCount "165"]
[EventDate "2024.11.22"]
[EventType "k.o."]
[EventCountry "ROU"]
[SourceTitle "playchess.com"]
[Source "ChessBase"]
[SourceQuality "1"]
[TimeControl "900+5"]

{[%evp 17,165,0,21,17,11,5,16,16,14,14,29,13,8,0,6,0,0,0,0,-55,-45,-59,-58,-62,-55,-86,-80,-327,-317,-838,-98,-171,105,99,109,123,142,139,133,123,160,160,158,154,150,148,193,-33,107,103,243,251,239,235,236,222,225,235,256,225,225,225,267,228,253,248,262,212,308,274,419,419,418,408,400,304,332,328,291,281,492,410,684,695,584,483,1864,1717,1807,1256,1076,1060,2940,867,1092,1101,4606,2353,4622,2839,2422,4968,5628,5447,5072,5072,5072,5072,5027,5072,5071,5064,5064,0,0,0,0,0,0,0,0,0,0,0,0,0,0,0,0,0,0,0,0,0,0,0,0,0,0,0,0,0,0,0,0,0,0,0,0,0]} 1. e4 {[%emt 0:00:03]} e6 {[%emt 0:00:02]} 2. d4 {[%emt 0:00:04]} d5 {[%emt 0:00:01]} 3. e5 {[%emt 0:00:02]} c5 {[%emt 0:00:01]} 4. c3 {[%emt 0:00:02]} Nc6 {[%emt 0:00:01]} 5. Nf3 {[%emt 0:00:03]} Bd7 {[%emt 0:00:01]} 6. Be2 {[%emt 0:01:35]} Nge7 {[%emt 0:00:07]} 7. Na3 {[%emt 0:00:14]} Nf5 {[%emt 0:00:47]} 8. Nc2 {[%emt 0:00:07]} cxd4 {[%emt 0:00:07]} 9. cxd4 {[%emt 0:00:03]} Be7 {[%emt 0:00:02]} 10. O-O {[%emt 0:00:06]} O-O {[%emt 0:00:05]} 11. Bd3 {[%emt 0:05:01]} f6 {[%emt 0:00:19]} 12. Bxf5 {[%emt 0:04:12]} exf5 {[%emt 0:00:05]} 13. Re1 {[%emt 0:00:55]} Be8 {[%emt 0:02:49]} 14. Qd3 {[%emt 0:00:11]} Bh5 {[%emt 0:01:33][%cal Of5f4]} 15. exf6 {[%emt 0:00:49]} Bxf6 {[%emt 0:00:02]} 16. Ne5 {[%emt 0:00:01]} Bxe5 {[%emt 0:00:39]} 17. dxe5 {[%emt 0:00:02]} f4 {[%emt 0:00:02]} 18. e6 {[%emt 0:00:53]} (18. Nd4 $11 Bg6 19. Qd1 Nxd4 20. Qxd4) 18... Bg6 $15 {[%emt 0:01:05]} 19. Qb3 {[%emt 0:00:09]} Qe7 {[%emt 0:01:18] Prevents Nb4.} 20. Bd2 {[%emt 0:00:06] [#]} f3 $1 {[%emt 0:03:28]} 21. Nb4 {[%emt 0:00:18]} (21. Bb4 Qg5) 21... Nd4 $1 {[%emt 0:00:08][%csl LRb3,LRe6]} 22. Qxd5 {[%emt 0:01:51]} (22. Nxd5 $17 Qc5 23. Be3 Nxb3 24. Bxc5 Nxc5 25. Re3) 22... Ne2+ $1 $19 {[%emt 0:00:09]} 23. Kh1 $2 {[%emt 0:00:07]} (23. Kf1 Rad8 24. Bg5 Qxb4 $19 (24... fxg2+ 25. Qxg2 $11)) (23. Rxe2 fxe2 24. Qe5) 23... a5 $2 {[%emt 0:02:32]} (23... Rad8 $19 {has better winning chances.} 24. Qxf3 Rxf3 (24... Rxd2 $2 25. Qe3 $19) 25. Rxe2 Bh5 (25... Rxd2 $2 26. Rxd2 Qxb4 27. Re2 $19)) 24. gxf3 {[%emt 0:00:04]} (24. Bg5 $17 fxg2+ (24... Qxb4 25. e7+ Kh8 26. exf8=B $11) 25. Kxg2 Nf4+ (25... Qxb4 26. e7+ Bf7 27. Qd7 $17) 26. Bxf4 Rxf4 27. Nd3) 24... Nf4 $2 {[%emt 0:00:26]} (24... Rf5 $1 $19 {[%cal Rf5d5]} 25. Rxe2 Rxd5 26. Nxd5 Qd6) 25. Bxf4 $16 {[%emt 0:00:03]} Rxf4 {[%emt 0:00:01]} 26. Nd3 {[%emt 0:00:07]} Rh4 {[%emt 0:01:02]} 27. Re3 {[%emt 0:00:04]} Rd8 {[%emt 0:00:09]} 28. Qc5 {[%emt 0:00:03]} Qf6 {[%emt 0:00:11]} 29. e7 {[%emt 0:00:02]} Re8 {[%emt 0:00:01]} 30. Ne5 {[%emt 0:00:12]} Qf4 {[%emt 0:00:07][%csl Gh4][%cal Rf4h2]} 31. Qd5+ {[%emt 0:00:04]} (31. Qxa5 $2 Qxh2#) 31... Kh8 {[%emt 0:00:02][%csl Gh4][%cal Rf4h2] [#]} 32. Nxg6+ {[%emt 0:00:05]} (32. Qxa5 $2 Qxh2#) (32. Ng4 $1 $18) 32... hxg6 {[%emt 0:00:01][%csl Gh4][%cal Rf4h2]} 33. Qe5 $1 {[%emt 0:00:04] Black must now prevent Qxf4.} (33. Qxb7 $2 Qxh2#) 33... Kg8 {[%emt 0:00:18]} (33... Rxh2+ $16 34. Kg1 Rh4) 34. Qxf4 $18 {[%emt 0:00:05]} (34. Qxa5 $2 Qxh2#) 34... Rxf4 {[%emt 0:00:01][%mdl 4096] Endgame. KRR-KRR} 35. Rd1 {[%emt 0:00:07]} Kf7 {[%emt 0:00:02]} 36. Rd7 {[%emt 0:00:04]} Rb4 {[%emt 0:00:02][%cal Bf4b4,Bb4b5,Bb5g5][%mdl 32]} 37. b3 {[%emt 0:00:02]} Rb5 {[%emt 0:00:11]} 38. Kg2 {[%emt 0:00:05]} Rg5+ {[%emt 0:00:06]} 39. Kf1 {[%emt 0:00:02]} Rb5 {[%emt 0:00:03]} 40. Ke2 {[%emt 0:00:08]} b6 {[%emt 0:00:02]} 41. Rb7 {[%emt 0:00:08]} Rb4 {[%emt 0:00:04]} 42. Kd3 {[%emt 0:00:05]} Kf6 {[%emt 0:00:10]} (42... Rh4 {was called for.} 43. Rxb6 Rxh2) 43. Kc3 {[%emt 0:00:05]} Rc8+ {[%emt 0:00:04]} (43... Kf7 $142 44. Re4 Rc8+ 45. Kd3 Ke8) 44. Kb2 {[%emt 0:00:04]} Re8 {[%emt 0:00:01]} 45. a3 {[%emt 0:00:04]} Rb5 {[%emt 0:00:01]} 46. Re4 {[%emt 0:00:04]} Kf7 {[%emt 0:00:06]} 47. a4 {[%emt 0:00:07]} Rf5 {[%emt 0:00:01]} 48. f4 {[%emt 0:00:06][%cal Bf3f4,Bf4g5][%mdl 32]} (48. Rxb6 Rxf3 49. h3 Rxf2+ 50. Ka3 Rf3) 48... g5 $2 {[%emt 0:00:01]} (48... Rh5 {was worth a try.} 49. Ka3 (49. Rxb6 Rxh2 50. Kc3 Rxf2 $18) 49... Rxh2 50. Rxb6 Rxf2) 49. fxg5 {[%emt 0:00:04]} (49. Rxb6 Rxe7 50. Rb5 (50. Rxe7+ Kxe7 51. fxg5 Rxg5 $18) 50... Rxf4 51. Rxf4+ gxf4 $16) 49... Rxf2+ {[%emt 0:00:01]} (49... Rxg5 $142 50. Rxb6 Rf5) 50. Ka3 {[%emt 0:00:06]} Rxh2 {[%emt 0:00:05]} 51. Rf4+ {[%emt 0:00:06]} Kg6 {[%emt 0:00:10]} (51... Kg8 $142 52. Rxb6 Re2 53. Rf8+ Rxf8) 52. Rf8 {[%emt 0:00:04]} Rh8 {[%emt 0:00:01]} 53. Rxh8 {[%emt 0:00:03]} Rxh8 {[%emt 0:00:01]} 54. Rxb6+ {[%emt 0:00:06]} Kxg5 {[%emt 0:00:01] KR-KR} 55. Rb5+ {[%emt 0:00:05]} (55. Re6 $142 Re8 56. b4) 55... Kf6 {[%emt 0:00:01]} 56. Rxa5 {[%emt 0:00:13]} g5 {[%emt 0:00:20][%cal Bg7g5,Bg5g4,Bg4g3,Bg3g2][%mdl 32]} 57. Rd5 {[%emt 0:00:00]} Re8 {[%emt 0:00:01]} 58. a5 {[%emt 0:00:00][%cal Ba4a5,Ba5a6][%mdl 32]} Rxe7 {[%emt 0:00:01]} 59. b4 {[%emt 0:00:05][%cal Bb3b4,Bb4b5][%mdl 32]} g4 {[%emt 0:00:01]} 60. a6 {[%emt 0:00:08]} g3 {[%emt 0:00:03]} 61. Ka4 {[%emt 0:00:05]} Rg7 {[%emt 0:00:14]} 62. Rd1 {[%emt 0:00:03]} Ke5 {[%emt 0:00:15]} 63. b5 {[%emt 0:00:07]} g2 {[%emt 0:00:11]} 64. Rg1 {[%emt 0:00:06] Threatening mate with b6.} Kd6 {[%emt 0:00:08] [#]} 65. Ka5 $2 {[%emt 0:00:03]} ({Only move:} 65. b6 $1 $18 {White threatens a7 and mate.} Rg4+ 66. Kb5 Rg5+ 67. Kc4) 65... Kc7 $1 $11 {[%emt 0:00:10] The position is equal.} 66. Rc1+ {[%emt 0:00:05]} Kb8 {[%emt 0:00:01]} 67. Rg1 {[%emt 0:00:06]} Ka7 {[%emt 0:00:06]} 68. b6+ {[%emt 0:00:03]} Kb8 {[%emt 0:00:03]} 69. Re1 {[%emt 0:00:07][%cal Re1e8]} Rg5+ {[%emt 0:00:01]} 70. Kb4 {[%emt 0:00:03]} Rg8 {[%emt 0:00:01] Dodges Re8+} 71. Rg1 {[%emt 0:00:06]} Rg6 {[%emt 0:00:06]} 72. Kc5 {[%emt 0:00:04]} Rg5+ {[%emt 0:00:02]} 73. Kc4 {[%emt 0:00:02]} Rg6 {[%emt 0:00:05]} 74. Kc5 {[%emt 0:00:10]} Rg5+ {[%emt 0:00:01]} 75. Kc4 {[%emt 0:00:04]} Rg6 {[%emt 0:00:01]} 76. a7+ {[%emt 0:00:06]} Kb7 {[%emt 0:00:01]} 77. Ra1 {[%emt 0:00:05]} Rg8 {[%emt 0:00:07]} (77... g1=R 78. a8=Q+ Kxb6 79. Qa7+ Kc6 80. Ra6#) 78. Kb5 $1 {[%emt 0:00:06]} Rg5+ {[%emt 0:00:03]} 79. Kc4 {[%emt 0:00:02]} Rg4+ {[%emt 0:00:14]} 80. Kd5 {[%emt 0:00:05]} Rg5+ {[%emt 0:00:11]} ({Inferior is} 80... g1=R 81. a8=Q+ Kxb6 82. Qc6#) 81. Kc4 {[%emt 0:00:07] The board is on fire.} (81. Ke6 $5 Rg8 $8 (81... g1=R 82. a8=Q+ Kxb6 83. Ra6+ Kc5 84. Qc6+ Kd4 85. Ra4+ Kd3 86. Qc4+ Ke3 87. Qb3+ Ke2 88. Ra2+ Kf1 89. Qd1#) 82. Rg1 $11) 81... Rg4+ {[%emt 0:00:03]} 82. Kd3 {[%emt 0:00:03]} Rg8 {[%emt 0:00:04]} ({Not} 82... g1=R 83. a8=Q+ (83. a8=R R1g3+ 84. Ke2 Rg2+ 85. Kd3 R2g3+ 86. Ke2 Rg1 $11) 83... Kxb6 84. Ra6+ Kc7 85. Rc6+ Kd7 86. Qb7+ Ke8 87. Rc8#) 83. Rg1 {[%emt 0:00:08] What a bad dream for Black.   Weighted Error Value: White=0.39/Black=0.55.  Loses game:     	White=1     	---        Missed win:     	---       	Black=1      Mistake:       	White=4     	Black=5      Inaccurate:     	White=1     	Black=3      OK:         	White=23    	Black=24     Best:        	White=5     	Black=6      Strong:       	White=2     	Black=2} 1/2-1/2

[Event "Romania GP Final-KO 2024"]
[Site "Alba Iulia"]
[Date "2024.11.26"]
[Round "1.1"]
[White "Dragomirescu, Angela"]
[Black "Manolache, Marius"]
[Result "0-1"]
[ECO "A45"]
[WhiteElo "2060"]
[BlackElo "2407"]
[Annotator "RC"]
[PlyCount "50"]
[EventDate "2024.11.22"]
[EventType "k.o."]
[EventCountry "ROU"]
[SourceTitle "playchess.com"]
[Source "ChessBase"]
[SourceQuality "1"]
[TimeControl "900+5"]

1. d4 {[%emt 0:00:03]} Nf6 {[%emt 0:00:02]} 2. Nc3 {[%emt 0:00:01]} d6 {[%emt 0:00:02]} 3. Bf4 {[%emt 0:00:07]} g6 {[%emt 0:00:03]} 4. e3 {[%emt 0:00:05]} Bg7 {[%emt 0:00:05]} 5. h4 {[%emt 0:00:12]} h6 {[%emt 0:00:04]} 6. Bc4 {[%emt 0:00:47]} c6 {[%emt 0:00:06]} 7. Qf3 {[%emt 0:01:05]} d5 {[%emt 0:00:36]} 8. Bd3 {[%emt 0:00:42]} Be6 {[%emt 0:01:54]} 9. h5 {[%emt 0:03:13]} g5 {[%emt 0:00:45]} 10. Be5 {[%emt 0:03:38]} Nbd7 {[%emt 0:04:18]} 11. Qg3 {[%emt 0:00:21]} Nxe5 {[%emt 0:00:39]} 12. dxe5 {[%emt 0:00:02]} Ng4 {[%emt 0:02:37]} 13. f4 {[%emt 0:00:52]} Nxe3 {[%emt 0:00:13]} 14. Qxe3 {[%emt 0:01:41]} d4 {[%emt 0:00:03]} 15. Qg3 {[%emt 0:00:23]} dxc3 {[%emt 0:00:03]} 16. bxc3 {[%emt 0:00:51]} Qa5 {[%emt 0:00:57]} 17. Ne2 {[%emt 0:00:12]} O-O-O {[%emt 0:00:10]} 18. O-O {[%emt 0:00:23]} gxf4 {[%emt 0:00:06]} 19. Nxf4 {[%emt 0:00:42]} Bxe5 {[%emt 0:00:06]} 20. Rab1 {[%emt 0:00:38]} Qc5+ {[%emt 0:00:28]} 21. Qf2 {[%emt 0:00:24]} Qxf2+ {[%emt 0:00:27]} 22. Rxf2 {[%emt 0:00:01]} Bg4 {[%emt 0:00:43]} 23. Rb3 {[%emt 0:00:22]} Bc7 {[%emt 0:00:14]} 24. Ne2 {[%emt 0:00:14]} Bb6 {[%emt 0:00:13]} 25. Nd4 {[%emt 0:00:02]} e5 {[%emt 0:00:12]} 0-1

[Event "Romania GP Final-KO 2024"]
[Site "Alba Iulia"]
[Date "2024.11.26"]
[Round "1.1"]
[White "Obada, Ema"]
[Black "Stanciu, Alexandru-Ovidiu"]
[Result "0-1"]
[ECO "B30"]
[WhiteElo "2060"]
[BlackElo "2337"]
[Annotator "RC"]
[PlyCount "116"]
[EventDate "2024.11.22"]
[EventType "k.o."]
[EventCountry "ROU"]
[SourceTitle "playchess.com"]
[Source "ChessBase"]
[SourceQuality "1"]
[TimeControl "900+5"]

1. e4 {[%emt 0:00:02]} c5 {[%emt 0:02:09]} 2. Nf3 {[%emt 0:00:03]} Nc6 {[%emt 0:00:14]} 3. Bb5 {[%emt 0:00:02]} Qc7 {[%emt 0:00:55]} 4. O-O {[%emt 0:00:23]} Nf6 {[%emt 0:00:43]} 5. Re1 {[%emt 0:00:30]} a6 {[%emt 0:00:24]} 6. Bf1 {[%emt 0:00:18]} e6 {[%emt 0:00:31]} 7. c3 {[%emt 0:00:17]} d5 {[%emt 0:00:51]} 8. e5 {[%emt 0:01:14]} Ng4 {[%emt 0:01:55]} 9. d4 {[%emt 0:00:17]} h5 {[%emt 0:00:24]} 10. h3 {[%emt 0:01:01]} Nh6 {[%emt 0:00:05]} 11. a3 {[%emt 0:00:59]} c4 {[%emt 0:00:47]} 12. g3 {[%emt 0:02:39]} Nf5 {[%emt 0:00:16]} 13. h4 {[%emt 0:00:13]} Bd7 {[%emt 0:00:06]} 14. Bh3 {[%emt 0:00:18]} Na5 {[%emt 0:00:50]} 15. Nbd2 {[%emt 0:00:26]} g6 {[%emt 0:00:18]} 16. Rb1 {[%emt 0:00:19]} O-O-O {[%emt 0:00:48]} 17. Ng5 {[%emt 0:00:32]} Bc6 {[%emt 0:00:23]} 18. Qf3 {[%emt 0:00:43]} Kb8 {[%emt 0:00:08]} 19. Bf1 {[%emt 0:01:10]} Ka7 {[%emt 0:00:12]} 20. Be2 {[%emt 0:00:35]} Ba4 {[%emt 0:00:16]} 21. Bd1 {[%emt 0:00:32]} Bxd1 {[%emt 0:01:03]} 22. Qxd1 {[%emt 0:00:04]} Rd7 {[%emt 0:00:07]} 23. Nf1 {[%emt 0:00:34]} Qb6 {[%emt 0:00:52]} 24. Bf4 {[%emt 0:00:27]} Qb3 {[%emt 0:00:40]} 25. Qe2 {[%emt 0:00:34]} Bg7 {[%emt 0:00:17]} 26. Nd2 {[%emt 0:00:45]} Qa4 {[%emt 0:00:24]} 27. Nf1 {[%emt 0:00:25]} Rc8 {[%emt 0:00:03]} 28. Ne3 {[%emt 0:00:08]} Nh6 {[%emt 0:00:05]} 29. Nh7 {[%emt 0:00:14]} Ng8 {[%emt 0:00:04]} 30. Bg5 {[%emt 0:00:44]} Rc6 {[%emt 0:00:16]} 31. Bf6 {[%emt 0:00:55]} Nxf6 {[%emt 0:00:42]} 32. Nxf6 {[%emt 0:00:01]} Bxf6 {[%emt 0:00:02]} 33. exf6 {[%emt 0:00:01]} Rb6 {[%emt 0:00:08]} 34. g4 {[%emt 0:00:14]} hxg4 {[%emt 0:00:24]} 35. Nxg4 {[%emt 0:00:01]} Nc6 {[%emt 0:00:12]} 36. Nh2 {[%emt 0:00:14]} Rd8 {[%emt 0:00:15]} 37. Nf3 {[%emt 0:00:01]} Rh8 {[%emt 0:00:01]} 38. Kg2 {[%emt 0:00:01]} Rh5 {[%emt 0:00:07]} 39. Ng5 {[%emt 0:00:08]} Nd8 {[%emt 0:00:02]} 40. Rh1 {[%emt 0:00:02]} Qd7 {[%emt 0:00:18]} 41. Rbd1 {[%emt 0:00:09]} Qc7 {[%emt 0:00:06]} 42. Kf3 {[%emt 0:00:09]} Nc6 {[%emt 0:00:04]} 43. Rd2 {[%emt 0:00:07]} e5 {[%emt 0:00:03]} 44. dxe5 {[%emt 0:00:01]} Nxe5+ {[%emt 0:00:02]} 45. Kg2 {[%emt 0:00:02]} Nd3 {[%emt 0:00:06]} 46. Qf3 {[%emt 0:00:07]} Nf4+ {[%emt 0:00:03]} 47. Kf1 {[%emt 0:00:08]} Rxf6 {[%emt 0:00:03]} 48. Qe3+ {[%emt 0:00:03]} Rb6 {[%emt 0:00:05]} 49. Rd4 {[%emt 0:00:04]} Nd3 {[%emt 0:00:09]} 50. Rxd5 {[%emt 0:00:02]} Qf4 {[%emt 0:00:07]} 51. Qxf4 {[%emt 0:00:12]} Nxf4 {[%emt 0:00:02]} 52. Rd4 {[%emt 0:00:01]} Nd3 {[%emt 0:00:10]} 53. Rxc4 {[%emt 0:00:01]} Rxb2 {[%emt 0:00:02]} 54. Rh2 {[%emt 0:00:04]} f6 {[%emt 0:00:04]} 55. Ne4 {[%emt 0:00:07]} Re5 {[%emt 0:00:06]} 56. Kg2 {[%emt 0:00:10]} f5 {[%emt 0:00:04]} 57. Nd6 {[%emt 0:00:06]} Rxf2+ {[%emt 0:00:03]} 58. Kg3 {[%emt 0:00:05]} Re3# {[%emt 0:00:02]} 0-1